Cogmind - Beta 15 @@@ ROGUE MODE // 2025.07.28 @ 13:55:07 Player: shapeshifter Result: Destroyed by S-27 Virus with Autogun Performance ------------- Evolutions (5) 2500 Regions Visited (7) 1400 Robots Destroyed (31) 155 Value Destroyed (1294) 1294 Prototype IDs (10) 200 Alien Tech Used (0) 0 Bonus (800) 800 TOTAL SCORE: 6349 Bonus ------- Registered with UFD 300 Met Optimus in HQ 500 Cogmind --------- Core Integrity 0/1000 Matter 90/300 Energy 99/100 System Corruption 5% Temperature Cool (0) Movement Core (50) Location -5/Factory Parts ------- > --- POWER (2) -------- (None) > --- PROPULSION (4) --- (None) > --- UTILITY (8) ------ (None) > --- WEAPON (3) ------- (None) > --- INVENTORY (5) ---- Improved Transmission Jammer Makeshift Laser Plasma Rifle Heavy Machine Gun Hypervelocity Coil Gun Peak State ------------ > --- POWER ------------ Light Fission Core > --- PROPULSION ------- Improved Medium Treads Improved Medium Treads Improved Medium Treads Improved Medium Treads > --- UTILITY ---------- Large Storage Unit Triangulator Hardened Heavy Armor Plating Improved Heavy Armor Plating Makeshift Light Armor Plating A0-MCA's Component Scanner > --- WEAPON ----------- Heavy Machine Gun Heavy Machine Gun > --- INVENTORY -------- Light Fission Core Armored Treads Armored Treads Active Sensor Suite Hardened Heavy Armor Plating Hardened Heavy Armor Plating Overtuned Beamcaster Gauss Rifle Heavy Assault Cannon [Rating: 79] Favorites ----------- Power Fission Core Engine Light Ion Engine Power Core Fission Core Propulsion Improved Medium Treads Treads Improved Medium Treads Wheel Compact Wheel Utility Makeshift Light Armor Plating Device Cooling System Storage Large Storage Unit Processor A0-MCA's Component Scanner Hackware Advanced Hacking Suite Protection Makeshift Light Armor Plating Weapon Light Assault Rifle Energy Gun Spread Laser Energy Cannon Plasma Cannon Ballistic Gun Light Assault Rifle Ballistic Cannon Heavy Flak Cannon Build | -11 -10 -10 -9 -6 -6 -6 -5 ------- Run | Yrd Mat Sub Scr Fac Low Low Fac Slots Evolved 10 | . . . . 8 . . 2 Power 1 | . . . . . . . 1 Propulsion 2 | . . . . 2 . . . Utility 6 | . . . . 6 . . . Weapon 1 | . . . . . . . 1 Parts Attached 63 | 7 . 3 7 24 10 2 10 Power 6 | 1 . 1 1 2 . . 1 Engine 3 | 1 . 1 1 . . . . Core 3 | . . . . 2 . . 1 Reactor . | . . . . . . . . Propulsion 15 | 2 . . 3 6 3 1 . Treads 14 | 2 . . 2 6 3 1 . Leg . | . . . . . . . . Wheel 1 | . . . 1 . . . . Hover . | . . . . . . . . Flight . | . . . . . . . . Utility 25 | 2 . 1 1 11 4 1 5 Device 9 | 1 . . . 4 . 1 3 Storage 2 | 1 . . 1 . . . . Processor 1 | . . . . 1 . . . Hackware 1 | . . . . . . . 1 Protection 12 | . . 1 . 6 4 . 1 Artifact . | . . . . . . . . Weapon 17 | 2 . 1 2 5 3 . 4 Energy Gun 6 | . . . 2 . 2 . 2 Energy Cannon 3 | . . 1 . 1 . . 1 Ballistic Gun 5 | 2 . . . 3 . . . Ballistic Cannon 3 | . . . . 1 1 . 1 Launcher . | . . . . . . . . Special Weapon . | . . . . . . . . Impact Weapon . | . . . . . . . . Slashing Weapon . | . . . . . . . . Piercing Weapon . | . . . . . . . . Special Melee Weapon . | . . . . . . . . Unidentified Prototypes . | . . . . . . . . Parts Lost 28 | . . 1 . 1 5 4 17 Power 2 | . . . . . . . 2 Propulsion 8 | . . . . . 2 1 5 Utility 13 | . . 1 . 1 2 3 6 Weapon 5 | . . . . . 1 . 4 Highest Loss Streak 15 | . . 1 . 1 3 3 15 To Critical Strikes . | . . . . . . . . Average Backups 9 | 2 4 5 8 10 12 10 7 Power 1 | . 1 1 1 1 1 1 . Propulsion 1 | 1 2 1 1 1 1 1 . Utility 3 | . . . 2 3 5 3 1 Weapon 3 | . 1 1 2 3 3 4 5 Tool/Special . | . . . . . . . . Unused Backups 34 | . . 3 8 18 2 . 3 Power 6 | . . . 2 4 . . . Propulsion 8 | . . 2 3 3 . . . Utility 8 | . . . . 5 2 . 1 Weapon 10 | . . 1 2 5 . . 2 Tool/Special 2 | . . . 1 1 . . . Average Slot Usage (%) 91 | . 100 93 99 89 85 85 86 Engine 5 | . 14 14 14 . . . . Core 3 | . . . . 5 6 6 9 Treads 25 | . 28 28 27 25 26 26 19 Device 4 | . 14 2 . 5 6 6 15 Storage 8 | . 14 14 14 6 6 6 4 Processor 2 | . . . . 5 4 . . Protection 18 | . . 5 14 23 21 25 15 Energy Gun 3 | . . . 6 3 . . . Ballistic Gun 13 | . 28 28 21 5 11 6 4 Ballistic Cannon 1 | . . . . . 1 6 8 Peak Build Rating 79 | 7 7 11 19 79 74 65 79 Average Rating 44 | 4 7 8 12 62 71 62 66 On Entrance 29 | . 7 7 11 18 74 62 53 Naked Turns 49 | . . . . . . . 49 Heaviest Build 100 | 13 13 14 37 87 100 100 92 Greatest Support 120 | 40 40 40 46 120 120 100 100 Greatest Overweight (x) 2 | . . . 2 . . . 1 Average Overweight (x) . | . . . . . . . . Largest Inventory Capacity 15 | 8 8 8 15 15 15 15 15 Average Capacity 12 | 7 8 8 10 15 15 15 14 Most Carried 15 | 5 4 8 15 15 15 13 10 Average Carried 10 | 3 4 6 9 13 13 11 7 Final Capacity 15 | 8 8 8 15 15 15 15 5 Final Carried 15 | 4 4 8 15 15 7 10 5 Class Distribution -------------------- 73% | Mutant 19% | Derelict-Mutant 7% | Tank Dominant Class ---------------- Mutant | -10/Materials Mutant | -10/Subcaves Mutant | -9/Scraptown Mutant | -6/Factory Mutant | -6/Lower Caves Mutant | -6/Lower Caves Tank | -5/Factory Resources | -11 -10 -10 -9 -6 -6 -6 -5 ----------- Run | Yrd Mat Sub Scr Fac Low Low Fac Matter Collected 1439 | 276 . 57 95 463 273 31 244 Remotely . | . . . . . . . . Salvage Created 1439 | 109 . 14 . 704 146 . 466 Parts 82 | 9 . . . 47 6 . 20 Haulers Intercepted 1 | . . . . 1 . . . Recyclers Shooed 2 | . . . . 1 . . 1 Parts Field Recycled . | . . . . . . . . Retrieved Matter . | . . . . . . . . Parts Self-Destructed 23 | . . 4 . . 18 1 . Prevented 1 | . . . . . . 1 . Kills | -11 -10 -10 -9 -6 -6 -6 -5 ------- Run | Yrd Mat Sub Scr Fac Low Low Fac Combat Hostiles Destroyed 23 | . . 1 . 13 2 . 7 Guns 13 | . . 1 . 10 1 . 1 Cannons 8 | . . . . 3 1 . 4 AOE 1 | . . . . . . . 1 Classes Destroyed 12 | 2 . 1 . 7 1 . 1 Worker 2 | . . . . . . . 2 Builder 1 | . . . . 1 . . . Tunneler 2 | 2 . . . . . . . Hauler 1 | . . . . 1 . . . Recycler 2 | 1 . . . . . . 1 Swarmer 5 | . . 1 . 4 . . . Grunt 5 | . . . . 2 . . 3 Sentry 3 | . . . . 2 1 . . Hunter 6 | . . . . 3 . . 3 Programmer 2 | . . . . 1 . . 1 Heavy 1 | . . . . 1 . . . Behemoth 1 | . . . . . 1 . . Best Kill Streak 5 | 3 . 1 . 4 1 . 5 Combat Bots Only 4 | . . 1 . 3 1 . 4 Max Kills in Single Turn 3 | 1 . 1 . 1 1 . 3 Gunslinging . | . . . . . . . . Exploded 1 | . . . . . . . 1 Melee . | . . . . . . . . Uniques/NPCs Destroyed . | . . . . . . . . Combat | -11 -10 -10 -9 -6 -6 -6 -5 -------- Run | Yrd Mat Sub Scr Fac Low Low Fac Hostile Shots Fired 633 | . . 30 . 224 80 72 227 Missed 178 | . . 10 . 65 24 16 63 Hits 455 | . . 20 . 159 56 56 164 Projectile 455 | . . 20 . 159 56 56 164 AOE 4 | . . . . . . . 4 Critical Strikes 13 | . . 2 . 3 2 2 4 Damage Taken 8194 | . . 449 . 2280 1535 960 2970 Core 1575 | . . 219 . 164 169 21 1002 Absorbed by Shields . | . . . . . . . . Redirected to Shielding 47 | . . . . 47 . . . Ignored by Resistances 701 | . . . . 357 . . 344 Core Remaining (%) 56 | 100 . . 12 . . 58 . Volleys Fired 170 | 8 . 12 . 80 32 2 36 Largest 3 | 2 . 2 . 2 2 2 3 Hottest 128 | 40 . 80 . 121 128 74 121 Shots Fired 272 | 16 . 23 . 121 52 4 56 Gun 212 | 16 . 22 . 89 50 2 33 Cannon 60 | . . 1 . 32 2 2 23 Launcher . | . . . . . . . . Special . | . . . . . . . . Kinetic 194 | 16 . 22 . 75 40 4 37 Thermal 59 | . . 1 . 46 12 . . Explosive . | . . . . . . . . Electromagnetic 19 | . . . . . . . 19 Robot Hit Streak 16 | 3 . 4 . 16 8 3 10 Robot Miss Streak 12 | 2 . 2 . 7 2 2 12 Penetration Max 1 | . . . . . . . 1 Secondary Targets 1 | . . . . 1 . . . Max Gunslinging Chain 1 | . . . . 1 . . . Shots Hit Robots 166 | 9 . 7 . 70 40 3 37 Core Hits 79 | 6 . 2 . 36 9 3 23 Critical Kills 1 | . . . . 1 . . . Critical Parts Destroyed 1 | . . . . . 1 . . Critical Strikes 8 | . . . . 4 2 . 2 Burn 2 | . . . . 2 . . . Meltdown 1 | . . . . 1 . . . Destroy 3 | . . . . 1 2 . . Blast 2 | . . . . . . . 2 Melee Attacks . | . . . . . . . . Impact . | . . . . . . . . Slashing . | . . . . . . . . Piercing . | . . . . . . . . Sneak Attacks . | . . . . . . . . Combat Hostiles . | . . . . . . . . Follow-up Attacks . | . . . . . . . . Damage Inflicted 3852 | 64 . 59 . 1527 880 61 1261 Guns 2482 | 64 . 59 . 1047 834 16 462 Cannons 1104 | . . . . 480 46 45 533 Explosions 237 | . . . . . . . 237 Melee . | . . . . . . . . Ramming 29 | . . . . . . . 29 Kinetic 2401 | 64 . 59 . 893 630 61 694 Thermal 1121 | . . . . 634 250 . 237 Explosive . | . . . . . . . . Electromagnetic 301 | . . . . . . . 301 Impact . | . . . . . . . . Slashing . | . . . . . . . . Piercing . | . . . . . . . . Highest Corruption 5 | . . . . 1 1 1 5 Average Corruption 1 | . . . . 1 1 1 4 Corruption Purged . | . . . . . . . . Corruption Blocked . | . . . . . . . . Effects 18 | . . . . . 10 6 2 Message Errors 4 | . . . . . 3 . 1 Matter Fused 4 | . . . . . 1 2 1 Heat Flow Errors 2 | . . . . . 1 1 . Energy Discharges 2 | . . . . . 1 1 . Data Loss (minor) 2 | . . . . . 2 . . Data Loss (major) 2 | . . . . . . 2 . Misfires 2 | . . . . . 2 . . Overload Shots . | . . . . . . . . Overflow Damage 70 | . . . . 14 . . 56 Projectiles 14 | . . . . 14 . . . Explosions 56 | . . . . . . . 56 Melee . | . . . . . . . . Knockbacks 11 | . . . . 1 . 2 8 Impact . | . . . . . . . . Kinetic 9 | . . . . 1 . 2 6 Secondary 2 | . . . . . . . 2 Self-Inflicted Damage 76 | . . . . . . . 76 Shots 1 | . . . . . . . 1 Rammed 5 | . . . . . . . 5 Targets Rammed 6 | . . . . . . . 6 Kicked . | . . . . . . . . Crushed 1 | . . . . . . . 1 Highest Temperature 721 | . . 261 . 347 721 207 377 Average Temperature 175 | . . 133 . 169 246 79 156 Received Heat Transfer 2033 | . . 641 . 144 864 . 384 Effects 28 | . . . . 7 19 . 2 Shutdowns 8 | . . . . 1 5 . 2 Energy Bleed 1 | . . . . 1 . . . Interference 5 | . . . . 5 . . . Matter Decay 2 | . . . . . 2 . . Short Circuit 1 | . . . . . 1 . . Damage (minor) 1 | . . . . . 1 . . Damage (major) 9 | . . . . . 9 . . Damage (core) 1 | . . . . . 1 . . Siege Activations . | . . . . . . . . Martial Activations . | . . . . . . . . Shielding Activations . | . . . . . . . . Robots Disrupted . | . . . . . . . . Combat Hostiles . | . . . . . . . . Robots Corrupted 1 | . . . . . . . 1 Combat Hostiles 1 | . . . . . . . 1 Parts Fried 2 | . . . . . . . 2 Impact Corruptions . | . . . . . . . . Robots Melted 1 | . . . . 1 . . . Combat Hostiles . | . . . . . . . . Parts Melted 3 | . . . . 2 . . 1 Heat Transferred 2106 | . . . . 1456 500 . 150 Parts Sabotaged . | . . . . . . . . Parts Stolen . | . . . . . . . . Parts Stripped . | . . . . . . . . Power Chain Reactions . | . . . . . . . . Alert | -11 -10 -10 -9 -6 -6 -6 -5 ------- Run | Yrd Mat Sub Scr Fac Low Low Fac Maximum Alert Level . | . . . . . . . . Low Security (%) 100 | 100 100 . . 100 . . 100 Level 1 . | . . . . . . . . Level 2 . | . . . . . . . . Level 3 . | . . . . . . . . Level 4 . | . . . . . . . . Level 5 . | . . . . . . . . High Security . | . . . . . . . . Max Security . | . . . . . . . . Peak Influence 145 | 10 . . . 145 . . 120 Initial . | . . . . . . . . Average 36 | . . . . 39 . . 38 Influence Increases 821 | 15 . 20 . 379 50 . 357 Destroy 0b10 Robot/C 460 | . . 20 . 260 40 . 140 Destroy 0b10 Robot/NC 40 | 15 . . . 10 . . 15 Destroy Leader 122 | . . . . 72 10 . 40 Successful Hack 12 | . . . . 12 . . . Disable Machine 75 | . . . . . . . 75 Destroy Structure 52 | . . . . 10 . . 42 Lose Combat Pursuer 60 | . . . . 15 . . 45 Influence Decreases 736 | 15 . 20 . 286 143 . 272 Entered New Map 35 | . . . . . 35 . . Time Decay 521 | 15 . 10 . 286 108 . 102 Lost Part 180 | . . 10 . . . . 170 Squads Dispatched 10 | . . . . 4 . . 6 Investigation 3 | . . . . . . . 3 Extermination 3 | . . . . 2 . . 1 Reinforcement 4 | . . . . 2 . . 2 Assault . | . . . . . . . . Garrison . | . . . . . . . . Intercept . | . . . . . . . . Searches Triggered . | . . . . . . . . Construction Impeded 1 | . . . . . . . 1 Haulers Reinforced 1 | . . . . 1 . . . Active Scanning Responses . | . . . . . . . . Cargo Convoy Interrupts . | . . . . . . . . Stealth | -11 -10 -10 -9 -6 -6 -6 -5 --------- Run | Yrd Mat Sub Scr Fac Low Low Fac Distress Signals 2 | . . . . . . . 2 Communications Jammed . | . . . . . . . . Distress Signals . | . . . . . . . . Times Spotted 53 | . . 4 . 18 2 2 27 Peak Tracking Total 13 | . . 3 . 4 1 2 13 Tactical Retreats 3 | . . . . 1 . . 2 Traps | -11 -10 -10 -9 -6 -6 -6 -5 ------- Run | Yrd Mat Sub Scr Fac Low Low Fac Traps Triggered 6 | . . . . 4 . . 2 Indirectly . | . . . . . . . . Trap Hack Attempts . | . . . . . . . . Triggered . | . . . . . . . . Disarmed . | . . . . . . . . Reprogrammed . | . . . . . . . . Reused . | . . . . . . . . Traps Extracted . | . . . . . . . . Installed 1 | . . . . . 1 . . Triggered . | . . . . . . . . Machines | -11 -10 -10 -9 -6 -6 -6 -5 ---------- Run | Yrd Mat Sub Scr Fac Low Low Fac Machines Disabled 5 | . . . . . . . 5 Max in Single Turn 4 | . . . . . . . 4 Garrison Access 1 | . . . . 1 . . . Machines Repaired . | . . . . . . . . Machines Dismantled . | . . . . . . . . Machines Sabotaged . | . . . . . . . . Overloaded Fab Kills . | . . . . . . . . Hacking | -11 -10 -10 -9 -6 -6 -6 -5 --------- Run | Yrd Mat Sub Scr Fac Low Low Fac Machines Accessed 16 | . . . 4 6 . 1 5 Terminals 7 | . . . . 3 . . 4 Fabricators 1 | . . . . . . . 1 Repair Stations 1 | . . . . 1 . . . Recycling Units 1 | . . . . 1 . . . Scanalyzers . | . . . . . . . . Garrison Access 1 | . . . . 1 . . . Total Hacks 35 | . . . 11 10 . 1 13 Successful 17 | . . . 11 4 . 1 1 Failed 18 | . . . . 6 . . 12 Catastrophic 3 | . . . . 1 . . 2 Database Lockouts . | . . . . . . . . Manual 12 | . . . . 4 . . 8 Terminals 17 | . . . . 5 . . 12 Fabricators 1 | . . . . . . . 1 Repair Stations 1 | . . . . 1 . . . Recycling Units 2 | . . . . 2 . . . Scanalyzers . | . . . . . . . . Garrison Access 2 | . . . . 2 . . . Terminal Hacks 12 | . . . 11 . . 1 . Record 10 | . . . 10 . . . . Open Door 1 | . . . . . . 1 . Proto ID Catalog 1 | . . . 1 . . . . Fabricator Hacks . | . . . . . . . . Repair Station Hacks 1 | . . . . 1 . . . Scan Component 1 | . . . . 1 . . . Recycling Unit Hacks 2 | . . . . 2 . . . Report Inventory 1 | . . . . 1 . . . Retrieve Components 1 | . . . . 1 . . . Scanalyzer . | . . . . . . . . Garrison Access Hacks 1 | . . . . 1 . . . Seal Access 1 | . . . . 1 . . . Unauthorized Hacks 1 | . . . . . . . 1 Terminals 1 | . . . . . . . 1 Botnet 1 | . . . . . . . 1 Fabricators . | . . . . . . . . Repair Stations . | . . . . . . . . Recycling Units . | . . . . . . . . Scanalyzers . | . . . . . . . . Garrison Access . | . . . . . . . . Data Cores Recovered . | . . . . . . . . Used . | . . . . . . . . Hacking Detections 11 | . . . . 6 . . 5 Full Trace Events 3 | . . . . . . . 3 Feedback Events . | . . . . . . . . Feedback Blocked . | . . . . . . . . Robot Schematics Acquired . | . . . . . . . . Robots Built . | . . . . . . . . Authchips . | . . . . . . . . Time . | . . . . . . . . Total Robot Build Rating . | . . . . . . . . Part Schematics Acquired . | . . . . . . . . Parts Built . | . . . . . . . . Authchips . | . . . . . . . . Time . | . . . . . . . . Total Part Build Rating . | . . . . . . . . Parts Repaired . | . . . . . . . . Time . | . . . . . . . . Parts Recycled . | . . . . . . . . Recycled Matter . | . . . . . . . . Retrieved Matter . | . . . . . . . . Retrieved Components 7 | . . . . 7 . . . Parts Scanalyzed . | . . . . . . . . Part Schematics Acquired . | . . . . . . . . Parts Damaged . | . . . . . . . . Bothacking | -11 -10 -10 -9 -6 -6 -6 -5 ------------ Run | Yrd Mat Sub Scr Fac Low Low Fac Used RIF Installer . | . . . . . . . . Robots Hacked . | . . . . . . . . Non-combat . | . . . . . . . . Combat . | . . . . . . . . Robot Hacks Applied . | . . . . . . . . Relay Couplers Released . | . . . . . . . . Fabnet Peak Effective % . | . . . . . . . . Robots Rewired . | . . . . . . . . Allies Hacked . | . . . . . . . . Hacks Repelled . | . . . . . . . . Allies | -11 -10 -10 -9 -6 -6 -6 -5 -------- Run | Yrd Mat Sub Scr Fac Low Low Fac Total Allies . | . . . . . . . . Largest Group . | . . . . . . . . Highest-Rated Group . | . . . . . . . . Highest-Rated Ally . | . . . . . . . . Total Orders . | . . . . . . . . Ally Attacks . | . . . . . . . . Total Damage . | . . . . . . . . Kills . | . . . . . . . . Allies Corrupted . | . . . . . . . . Allies Melted . | . . . . . . . . Intel | -11 -10 -10 -9 -6 -6 -6 -5 ------- Run | Yrd Mat Sub Scr Fac Low Low Fac Active Infowar (turns) 720 | 5 31 52 . 128 . . 504 Sensors 323 | . . . . . . . 323 Seismic 88 | 5 31 52 . . . . . Triangulation 128 | . . . . 128 . . . ECM 502 | . . . . . . . 502 Robot Analysis Total . | . . . . . . . . Derelict Logs Recovered 9 | . . 1 4 . 3 1 . Drone Launches . | . . . . . . . . Drone Recoveries . | . . . . . . . . Exploration | -11 -10 -10 -9 -6 -6 -6 -5 ------------- Run | Yrd Mat Sub Scr Fac Low Low Fac Turns Passed 6898 | 150 31 320 2221 1574 1410 627 565 Spaces Moved 3918 | 81 12 172 1381 764 810 372 326 Core 111 | 16 . . . . . . 95 Treads 3711 | 65 12 172 1285 764 810 372 231 Legs . | . . . . . . . . Wheels 96 | . . . 96 . . . . Hover . | . . . . . . . . Flight . | . . . . . . . . Fastest Speed 50 | 50 160 160 130 160 160 165 50 Average Speed 157 | 138 160 160 157 160 160 165 133 Slowest Speed 245 | 160 160 160 160 160 165 165 245 Overloaded Moves . | . . . . . . . . Propulsion Burnouts . | . . . . . . . . Robots Hopped . | . . . . . . . . Potential Cave-ins . | . . . . . . . . Cave-ins Triggered . | . . . . . . . . Exploration Rate (%) 33 | 6 3 7 88 18 87 43 17 Regions Visited 7 Branch Regions 4 Pre-discovered Areas 7 | . . 1 4 . 1 1 . Known Exits Taken 1 | . . . . 1 . . . Unknown Exits Taken 6 | 1 1 1 1 . 1 1 . Scrap Searched 9 | . . . 5 . 3 1 . Spaces Dug . | . . . . . . . . Terrain Destroyed 27 | . . . . 7 . . 20 Melee . | . . . . . . . . Projectile 12 | . . . . 6 . . 6 AOE 14 | . . . . . . . 14 Terrain Rammed . | . . . . . . . . Walls Destroyed . | . . . . . . . . Machines Disabled . | . . . . . . . . Actions | -11 -10 -10 -9 -6 -6 -6 -5 --------- Run | Yrd Mat Sub Scr Fac Low Low Fac Total 4406 | 106 24 198 1425 1010 866 382 395 Wait 80 | . 13 . . 54 6 . 7 Move 3911 | 80 11 171 1380 763 809 371 326 Hop . | . . . . . . . . Pick Up 96 | 11 . 7 21 43 2 6 6 Fast Attach 2 | . . 1 . 1 . . . Attach 45 | 7 . . 2 18 6 3 9 Detach 2 | . . . . 2 . . . Swap 27 | . . 3 7 9 6 . 2 Drop 66 | . . 4 15 40 4 . 3 Fire 170 | 8 . 12 . 80 32 2 36 Melee . | . . . . . . . . Ram 2 | . . . . . . . 2 Kick . | . . . . . . . . Crush 4 | . . . . . . . 4 Escape Stasis . | . . . . . . . . Rewire . | . . . . . . . . Trap 1 | . . . . . 1 . . Miscellaneous . | . . . . . . . . Route ------- -11/Scrapyard -10/Materials -10/Subcaves -9/Scraptown (discovered 2 exits: *Fac x2) -6/Factory (discovered 2 exits: *Low x2) -6/Lower Caves -6/Lower Caves -5/Factory History --------- Turn | Location | Event 5 | -11/Scrapyard | Discovered new exit (range 16) 151 | -11/Scrapyard | Entered Materials 152 | -10/Materials | Met a group of wandering Federalists 179 | -10/Materials | Discovered new exit (range 3) 182 | -10/Materials | Entered Subcaves 182 | -10/Subcaves | Accompanied by 1 ally 183 | -10/Subcaves | Continued accompanying wandering Federalists (2) 183 | -10/Subcaves | Approached by a straggling Scientist 247 | -10/Subcaves | Core integrity fell below 50% 256 | -10/Subcaves | Learned location of Storage (-9) 260 | -10/Subcaves | Core integrity fell below 20% 330 | -10/Subcaves | Build established: Mutant 413 | -10/Subcaves | Wandering Federalist uncovered a shortcut to Scraptown 502 | -10/Subcaves | Entered Scraptown 662 | -9/Scraptown | Visited TADAMA 710 | -9/Scraptown | Visited Fellowship of the Rings 989 | -9/Scraptown | Heard Great Nut preacher, LISTEN AND RECITE! 1083 | -9/Scraptown | Discovered new exit (range 11) 1155 | -9/Scraptown | Scanned Subdweller tech in exchange for log data 1160 | -9/Scraptown | Learned location of 1 exit from Proximity Caves 1162 | -9/Scraptown | Learned location of Extension (-5) 1166 | -9/Scraptown | Learned location of 1 exit from Factory 1168 | -9/Scraptown | Learned location of Testing (-3) 1262 | -9/Scraptown | Visited Spacefarers 1304 | -9/Scraptown | Visited Cyclists 1314 | -9/Scraptown | Visited Red Mages 1469 | -9/Scraptown | Visited Cave Peace 1509 | -9/Scraptown | Visited Awakened 1576 | -9/Scraptown | Visited UFD Registry 1576 | -9/Scraptown | Registered with UFD as "Toolskull" 1696 | -9/Scraptown | Entered Cyclist Reading Room 1702 | -9/Scraptown | Learned location of Exiles (-9) 1702 | -9/Scraptown | Learned location of Zion (-7) 1792 | -9/Scraptown | Visited Curators Association 1819 | -9/Scraptown | Visited A0-MCA Data Center 1829 | -9/Scraptown | Given an A- rating by A0-MCA 1836 | -9/Scraptown | Found A0-MCA's Component Scanner 1866 | -9/Scraptown | Visited LU-1G1's Boring Crew 2084 | -9/Scraptown | Visited Observation Area 2124 | -9/Scraptown | Visited DA-N13 Charitable Foundation 2144 | -9/Scraptown | Found DCF Scrap (29 items) 2323 | -9/Scraptown | Visited Science Testing Area 2339 | -9/Scraptown | Visited Science Guys 2398 | -9/Scraptown | Visited Junk Repository 2446 | -9/Scraptown | Build established: Derelict-Mutant 2473 | -9/Scraptown | Visited Modified Component R&D 2642 | -9/Scraptown | Met Optimus 2642 | -9/Scraptown | Accepted into 0bPrime 2720 | -9/Scraptown | Discovered new exit (range 3) 2723 | -9/Scraptown | Entered Factory 2723 | -6/Factory | Evolved 8 slots: Propulsion x2, Utility x6 2724 | -6/Factory | Identified exit to Lower Caves 3756 | -6/Factory | Found Active Sensor Suite 3795 | -6/Factory | Build established: Mutant 4013 | -6/Factory | Discovered exit to Lower Caves (range 13) 4297 | -6/Factory | Entered Lower Caves 4385 | -6/Lower Caves | Learned Factory terminal intel 4623 | -6/Lower Caves | Attracted the attention of an 0b10 checkpoint 4988 | -6/Lower Caves | Learned Factory emergency access door positions 5222 | -6/Lower Caves | Encountered a Warlord checkpoint 5346 | -6/Lower Caves | Spotted B-75 Beast 5422 | -6/Lower Caves | Lost 3 parts (2n1u) 5468 | -6/Lower Caves | Destroyed B-75 Beast 5515 | -6/Lower Caves | Discovered new exit (range 9) 5707 | -6/Lower Caves | Entered another Lower Caves area 5867 | -6/Lower Caves | Encountered a Warlord checkpoint 5873 | -6/Lower Caves | Discovered new exit (range 14) 6068 | -6/Lower Caves | Entered a destroyed Warlord outpost 6269 | -6/Lower Caves | Lost 3 parts (1n2u) 6334 | -6/Lower Caves | Entered Factory 6334 | -5/Factory | Evolved 2 slots: Power x1, Weapon x1 6336 | -5/Factory | Loaded intel: 28 terminal locations 6628 | -5/Factory | Build established: Tank 6850 | -5/Factory | Released all parts (3) 6880 | -5/Factory | Lost 15 parts (2p4n5u4w) 6886 | -5/Factory | Spotted B-75 Beast 6890 | -5/Factory | Core integrity fell below 50% 6890 | -5/Factory | Core integrity fell below 20% 6899 | -5/Factory | Destroyed by S-27 Virus with Autogun Last Messages --------------- 06889_ Nuclear Reactor explodes. 06889_ R-10 Processor collects Lgt. Ion Engine. 06889_ U-05 Engineer lays Concrete. 06889_ Penetrated by Slug. 06889_ K-01 Serf collects debris. 06889_ Slug penetrates Terminal. 06890_ Acquired 4 matter. 06890_ U-05 Engineer lays Concrete. 06890_ K-01 Serf collects debris. 06891_ Connecting with Terminal... >>Trojan(Botnet) Trojan loaded successfully. Testing... Terminal linked with 0 systems. Awaiting botnet instructions. 06891_ ALERT: Suspicious activity at Terminal F003. Dispatching Investigation squad. 06891_ U-05 Engineer lays Concrete. 06893_ Penetrated by Slug. 06893_ U-05 Engineer lays Concrete. Map ----- +----------------------------------------------------+ | ???????????????????????????????????????????# # | | ???????????????????????????????????????????# # | | ???????????????????????????????????????????# # | | ?????????????????????????????????# ????????# # | | ?????????????????????????????????# ????? ?# # | | ?????????????????????????????????+ ???" ?# / | | ??????????????????????????????????? """ ?# # | | ???????????????????????????????????? ## # | | ???????????????????????????????#######+ | | ???????????????????????????? * | | ???????????????????????????? | | ???????????????????????????? | | ??????????????????????????? | | ????????????????????????????? | | ????????????????????????????######## | | ???????????????????????????? #???# | | ???????????????????????????"" #???# | | ??????????????????????????""" #???# | | ??????????????????# ?????"""" #???# | | ??????????????????# ?"""""" #???# | | ??????????????????# #???# | | ??????????????????# """""" #???# | | ??????????????????# """""" #???## | | ??????????????????# """""" #???## """ | | ??????????????????# """""" #####" ""T"" """ | | ??????????????????# @ sss ss """"" """ | | ??????????????????# ###### | | ??????????????????##############????# | | ????????????????????????????????????### ##### | | ??????????????????????????????????????# #??????? | | ??????????????????????????????????????# #????????? | | ??????????????????????????????????????# #????????? | | ??????????????????????????????????????# #????????? | | ??????????????????????????????????????# #????????? | | ??????????????????????????????????????? #????????? | | ??????????????????????????????????????? #????????? | | ????????????????????????????????????????#????????? | | ?????????????????????????????????????????????????? | | ?????????????????????????????????????????????????? | | ?????????????????????????????????????????????????? | | ?????????????????????????????????????????????????? | | ?????????????????????????????????????????????????? | | ?????????????????????????????????????????????????? | | ?????????????????????????????????????????????????? | | ?????????????????????????????????????????????????? | | ?????????????????????????????????????????????????? | | ?????????????????????????????????????????????????? | | | | | | | +----------------------------------------------------+ Best States ------------- Heat Dissipation 59 Energy Generation 31 Energy Capacity 370 Matter Stores 300 Matter Capacity 300 Sight Range 16 Robot Scan Range 16 Terrain Scan Density 10 ECM Strength 1 Armor Coverage 1650 Resistance: KI 30 Propulsion Shielding 33 Evasion (%) 50 Recoil Reduction 4 Force Boost 20 Offensive Hacking 14 Item Schematics ----------------- None Robot Schematics ------------------ None Fabricated ------------ Nothing Repaired ---------- Nothing Alien Tech Used ----------------- None Achievements -------------- None Challenges ------------ None Game ------ Seed BraceAssembledAirjet Manual? 0 Play Time 00:51:24 Cumulative 65.2 hours Start 2025.07.28 @ 13:04:57 End 2025.07.28 @ 13:55:07 Sessions 1 Manual Loads 0 Difficulty Rogue Special Mode None Game No. 143 Rogue 143 Adventurer 0 Explorer 0 Win Type - Total 1 Types 1/0/0/0/0/0/0/0/0/0 Lore% 47 Gallery% 48 Achievement% 35 Wizard Run 0 Options --------- Layout 1 ASCII 0 Keyboard 0 Movement Mouse Keybinds 0 Fullscreen 1 Font 24/Smallcaps Map View 50x40 Zoom Use 0% Tactical HUD 1 Map Filters NONE Filters NONE Steam 1 RUN: 5fce8ad0-8992-4544-abf1-d364bd4e5880